[Event "Titled Tuesday Blitz June 21 Late 2022"]
[White "Romanchuk, Viktor"]
[Black "Gimenez Aguirre, Alejo Ismael"]
[WhiteFideId "14109271"]
[BlackFideId "32041667"]
[WhiteElo "2242"]
[BlackElo "2031"]
[Result "1-0"]
[Round "05"]
[TimeControl "180+1"]
[Date "2022.06.22"]
[WhiteClock "0:00:08"]
[BlackClock "0:00:19"]

1. d4 {[%clk 0:03:00]}  Nf6 {[%clk 0:02:59]} 2. c4 {[%clk 0:03:00]}  e6 {[%clk 0:03:00]} 3. Nc3 {[%clk 0:03:00]}  Bb4 {[%clk 0:02:57]} 4. e3 {[%clk 0:03:00]}  O-O {[%clk 0:02:56]} 5. Ne2 {[%clk 0:03:00]}  d5 {[%clk 0:02:55]} 6. a3 {[%clk 0:03:01]}  Bd6 {[%clk 0:02:54]} 7. Ng3 {[%clk 0:02:59]}  c6 {[%clk 0:02:54]} 8. Bd3 {[%clk 0:02:57]}  Nbd7 {[%clk 0:02:54]} 9. O-O {[%clk 0:02:57]}  dxc4 {[%clk 0:02:54]} 10. Bxc4 {[%clk 0:02:57]}  b5 {[%clk 0:02:55]} 11. Be2 {[%clk 0:02:54]}  Bb7 {[%clk 0:02:55]} 12. Bf3 {[%clk 0:02:55]}  a6 {[%clk 0:02:54]} 13. b4 {[%clk 0:02:43]}  Qb6 {[%clk 0:02:37]} 14. Nce4 {[%clk 0:02:33]}  Be7 {[%clk 0:02:33]} 15. Bd2 {[%clk 0:02:29]}  Nd5 {[%clk 0:02:30]} 16. Qc2 {[%clk 0:02:22]}  f5 {[%clk 0:02:22]} 17. Nc5 {[%clk 0:02:11]}  Nxc5 {[%clk 0:02:22]} 18. dxc5 {[%clk 0:02:11]}  Qc7 {[%clk 0:02:22]} 19. Ne2 {[%clk 0:02:05]}  Bf6 {[%clk 0:02:21]} 20. Rad1 {[%clk 0:02:04]}  Rae8 {[%clk 0:02:11]} 21. e4 {[%clk 0:02:04]}  fxe4 {[%clk 0:02:05]} 22. Bxe4 {[%clk 0:02:04]}  g6 {[%clk 0:02:05]} 23. Bc1 {[%clk 0:01:48]}  a5 {[%clk 0:02:02]} 24. Bd2 {[%clk 0:01:30]}  axb4 {[%clk 0:02:00]} 25. axb4 {[%clk 0:01:30]}  Ra8 {[%clk 0:01:57]} 26. Rfe1 {[%clk 0:01:12]}  Ra4 {[%clk 0:01:56]} 27. Qb3 {[%clk 0:01:01]}  Be5 {[%clk 0:01:49]} 28. g3 {[%clk 0:00:59]}  Bg7 {[%clk 0:01:47]} 29. Nf4 {[%clk 0:00:57]}  Bc8 {[%clk 0:01:39]} 30. Bg2 {[%clk 0:00:40]}  Qf7 {[%clk 0:01:37]} 31. Re2 {[%clk 0:00:32]}  h6 {[%clk 0:01:21]} 32. Rde1 {[%clk 0:00:31]}  Nxf4 {[%clk 0:01:17]} 33. Bxf4 {[%clk 0:00:30]}  g5 {[%clk 0:01:13]} 34. Bd6 {[%clk 0:00:30]}  Bd7 {[%clk 0:01:09]} 35. Bxf8 {[%clk 0:00:28]}  Bxf8 {[%clk 0:01:10]} 36. Rd1 {[%clk 0:00:27]}  h5 {[%clk 0:01:03]} 37. Red2 {[%clk 0:00:23]}  Be8 {[%clk 0:01:03]} 38. Bh3 {[%clk 0:00:20]}  g4 {[%clk 0:01:02]} 39. Bg2 {[%clk 0:00:21]}  Bg7 {[%clk 0:01:01]} 40. h3 {[%clk 0:00:21]}  Bh6 {[%clk 0:00:59]} 41. Re2 {[%clk 0:00:19]}  Bd7 {[%clk 0:00:56]} 42. hxg4 {[%clk 0:00:18]}  hxg4 {[%clk 0:00:57]} 43. Rd4 {[%clk 0:00:18]}  Ra1+ {[%clk 0:00:51]} 44. Rd1 {[%clk 0:00:18]}  Ra4 {[%clk 0:00:48]} 45. Qc3 {[%clk 0:00:17]}  Bg7 {[%clk 0:00:47]} 46. Qd3 {[%clk 0:00:16]}  Be8 {[%clk 0:00:45]} 47. Qe4 {[%clk 0:00:16]}  e5 {[%clk 0:00:27]} 48. Qxg4 {[%clk 0:00:13]}  Kf8 {[%clk 0:00:26]} 49. Rd6 {[%clk 0:00:09]}  Ra1+ {[%clk 0:00:23]} 50. Kh2 {[%clk 0:00:09]}  Rb1 {[%clk 0:00:19]} 51. Bxc6 {[%clk 0:00:09]}  Bxc6 {[%clk 0:00:19]} 52. Rxc6 {[%clk 0:00:09]}  Bf6 {[%clk 0:00:19]} 53. Rc8+ {[%clk 0:00:08]} 1-0


[Site "https://www.chess.com"]

[Event "Titled Tuesday Blitz June 21 Late 2022"]
[White "Sadilek, Peter"]
[Black "Shuvalova, Polina"]
[WhiteFideId "1616439"]
[BlackFideId "24171760"]
[WhiteElo "2145"]
[BlackElo "2330"]
[Result "0-1"]
[Round "05"]
[TimeControl "180+1"]
[Date "2022.06.22"]
[WhiteClock "0:00:02"]
[BlackClock "0:00:06"]

1. d4 {[%clk 0:02:53]}  Nf6 {[%clk 0:02:54]} 2. Nf3 {[%clk 0:02:51]}  d5 {[%clk 0:02:53]} 3. c4 {[%clk 0:02:51]}  e6 {[%clk 0:02:45]} 4. Nc3 {[%clk 0:02:50]}  c5 {[%clk 0:02:40]} 5. cxd5 {[%clk 0:02:50]}  exd5 {[%clk 0:02:41]} 6. dxc5 {[%clk 0:02:42]}  Bxc5 {[%clk 0:02:37]} 7. Bg5 {[%clk 0:02:42]}  d4 {[%clk 0:02:36]} 8. Ne4 {[%clk 0:02:32]}  Bb4+ {[%clk 0:02:30]} 9. Bd2 {[%clk 0:02:24]}  Bxd2+ {[%clk 0:02:26]} 10. Nfxd2 {[%clk 0:02:22]}  O-O {[%clk 0:02:24]} 11. Nxf6+ {[%clk 0:02:20]}  Qxf6 {[%clk 0:02:24]} 12. g3 {[%clk 0:02:20]}  Qc6 {[%clk 0:02:21]} 13. Rg1 {[%clk 0:02:18]}  Bg4 {[%clk 0:02:15]} 14. Rc1 {[%clk 0:02:15]}  Qb6 {[%clk 0:02:13]} 15. h3 {[%clk 0:02:15]}  Bh5 {[%clk 0:02:12]} 16. Qb3 {[%clk 0:02:10]}  Qa5 {[%clk 0:02:04]} 17. Bg2 {[%clk 0:01:57]}  Nc6 {[%clk 0:01:56]} 18. g4 {[%clk 0:01:21]}  Bg6 {[%clk 0:01:55]} 19. h4 {[%clk 0:01:21]}  h5 {[%clk 0:01:49]} 20. gxh5 {[%clk 0:01:19]}  Bxh5 {[%clk 0:01:46]} 21. Bf3 {[%clk 0:01:18]}  Bxf3 {[%clk 0:01:39]} 22. Qxf3 {[%clk 0:01:15]}  Rfe8 {[%clk 0:01:24]} 23. Rg5 {[%clk 0:01:03]}  Qxa2 {[%clk 0:01:20]} 24. Qg4 {[%clk 0:00:26]}  Qxb2 {[%clk 0:00:50]} 25. Rxg7+ {[%clk 0:00:25]}  Kh8 {[%clk 0:00:49]} 26. Rb1 {[%clk 0:00:16]}  Qc2 {[%clk 0:00:38]} 27. Rg5 {[%clk 0:00:12]}  Re5 {[%clk 0:00:20]} 28. Qh5+ {[%clk 0:00:08]}  Qh7 {[%clk 0:00:20]} 29. Rxe5 {[%clk 0:00:07]}  Nxe5 {[%clk 0:00:15]} 30. Qxe5+ {[%clk 0:00:07]}  Kg8 {[%clk 0:00:14]} 31. Qg5+ {[%clk 0:00:04]}  Kh8 {[%clk 0:00:14]} 32. Qf6+ {[%clk 0:00:02]}  Kg8 {[%clk 0:00:14]} 33. Rb5 {[%clk 0:00:03]}  Kf8 {[%clk 0:00:12]} 34. Rxb7 {[%clk 0:00:01]}  Re8 {[%clk 0:00:10]} 35. Qd6+ {[%clk 0:00:01]}  Kg8 {[%clk 0:00:10]} 36. Qg3+ {[%clk 0:00:01]}  Kf8 {[%clk 0:00:09]} 37. Rb8 {[%clk 0:00:02]}  Qf5 {[%clk 0:00:05]} 38. Rxe8+ {[%clk 0:00:02]}  Kxe8 {[%clk 0:00:06]} 0-1


[Site "https://www.chess.com"]

[Event "Titled Tuesday Blitz June 21 Late 2022"]
[White "Barria Santos, Jose Guilherme"]
[Black "Yurovskykh, Oleksandr"]
[WhiteFideId "1939300"]
[BlackFideId "14134020"]
[WhiteElo "2261"]
[BlackElo "2292"]
[Result "1/2-1/2"]
[Round "05"]
[TimeControl "180+1"]
[Date "2022.06.22"]
[WhiteClock "0:00:16"]
[BlackClock "0:00:15"]

1. c4 {[%clk 0:02:58]}  c6 {[%clk 0:02:57]} 2. Nf3 {[%clk 0:02:56]}  d5 {[%clk 0:02:55]} 3. g3 {[%clk 0:02:56]}  Bg4 {[%clk 0:02:55]} 4. Bg2 {[%clk 0:02:56]}  e6 {[%clk 0:02:54]} 5. O-O {[%clk 0:02:56]}  Nd7 {[%clk 0:02:54]} 6. b3 {[%clk 0:02:56]}  Ngf6 {[%clk 0:02:53]} 7. Bb2 {[%clk 0:02:57]}  Bd6 {[%clk 0:02:53]} 8. Nc3 {[%clk 0:02:52]}  O-O {[%clk 0:02:53]} 9. e3 {[%clk 0:02:52]}  Ne5 {[%clk 0:02:48]} 10. d4 {[%clk 0:02:47]}  Nxf3+ {[%clk 0:02:47]} 11. Bxf3 {[%clk 0:02:47]}  Bxf3 {[%clk 0:02:48]} 12. Qxf3 {[%clk 0:02:48]}  Qe7 {[%clk 0:02:48]} 13. e4 {[%clk 0:02:47]}  dxe4 {[%clk 0:02:46]} 14. Nxe4 {[%clk 0:02:48]}  Nxe4 {[%clk 0:02:47]} 15. Qxe4 {[%clk 0:02:49]}  Rad8 {[%clk 0:02:37]} 16. Rad1 {[%clk 0:02:47]}  Ba3 {[%clk 0:02:31]} 17. Ba1 {[%clk 0:02:47]}  Rd7 {[%clk 0:02:28]} 18. f4 {[%clk 0:02:25]}  Rfd8 {[%clk 0:02:21]} 19. Kg2 {[%clk 0:02:25]}  Qd6 {[%clk 0:02:07]} 20. Rde1 {[%clk 0:02:22]}  g6 {[%clk 0:02:03]} 21. Rd1 {[%clk 0:02:11]}  Qf8 {[%clk 0:01:14]} 22. h4 {[%clk 0:02:00]}  Be7 {[%clk 0:01:14]} 23. h5 {[%clk 0:01:59]}  Bf6 {[%clk 0:01:13]} 24. Rd3 {[%clk 0:01:24]}  Qg7 {[%clk 0:01:13]} 25. Rfd1 {[%clk 0:01:25]}  gxh5 {[%clk 0:00:59]} 26. Qf3 {[%clk 0:01:25]}  h4 {[%clk 0:00:58]} 27. g4 {[%clk 0:01:25]}  Bxd4 {[%clk 0:00:51]} 28. Kh3 {[%clk 0:01:14]}  c5 {[%clk 0:00:45]} 29. Qe4 {[%clk 0:01:05]}  Qg6 {[%clk 0:00:21]} 30. Qf3 {[%clk 0:01:03]}  h6 {[%clk 0:00:13]} 31. Kg2 {[%clk 0:01:01]}  Kh7 {[%clk 0:00:13]} 32. Kh3 {[%clk 0:01:01]}  f5 {[%clk 0:00:13]} 33. R1d2 {[%clk 0:00:49]}  Rg8 {[%clk 0:00:11]} 34. gxf5 {[%clk 0:00:47]}  exf5 {[%clk 0:00:10]} 35. Bxd4 {[%clk 0:00:46]}  cxd4 {[%clk 0:00:09]} 36. Rxd4 {[%clk 0:00:46]}  Rxd4 {[%clk 0:00:09]} 37. Rxd4 {[%clk 0:00:47]}  Qg4+ {[%clk 0:00:04]} 38. Qxg4 {[%clk 0:00:47]}  Rxg4 {[%clk 0:00:05]} 39. Rd7+ {[%clk 0:00:45]}  Kg6 {[%clk 0:00:06]} 40. Rd6+ {[%clk 0:00:44]}  Kh5 {[%clk 0:00:05]} 41. Rd4 {[%clk 0:00:39]}  Rg1 {[%clk 0:00:05]} 42. Rd5 {[%clk 0:00:35]}  Rh1+ {[%clk 0:00:02]} 43. Kg2 {[%clk 0:00:35]}  Ra1 {[%clk 0:00:02]} 44. Rxf5+ {[%clk 0:00:33]}  Kg4 {[%clk 0:00:03]} 45. Rf7 {[%clk 0:00:26]}  h3+ {[%clk 0:00:03]} 46. Kh2 {[%clk 0:00:26]}  Rxa2+ {[%clk 0:00:03]} 47. Kh1 {[%clk 0:00:26]}  Kg3 {[%clk 0:00:04]} 48. Rg7+ {[%clk 0:00:25]}  Kxf4 {[%clk 0:00:05]} 49. Rxb7 {[%clk 0:00:25]}  a5 {[%clk 0:00:03]} 50. Rh7 {[%clk 0:00:20]}  Rb2 {[%clk 0:00:03]} 51. Rxh6 {[%clk 0:00:20]}  Rxb3 {[%clk 0:00:03]} 52. Ra6 {[%clk 0:00:18]}  Ra3 {[%clk 0:00:03]} 53. c5 {[%clk 0:00:19]}  Ke5 {[%clk 0:00:03]} 54. c6 {[%clk 0:00:19]}  Kd6 {[%clk 0:00:04]} 55. Kh2 {[%clk 0:00:20]}  Kc7 {[%clk 0:00:04]} 56. Kh1 {[%clk 0:00:19]}  a4 {[%clk 0:00:05]} 57. Kh2 {[%clk 0:00:19]}  Kd6 {[%clk 0:00:05]} 58. Kh1 {[%clk 0:00:19]}  Kc7 {[%clk 0:00:05]} 59. Kh2 {[%clk 0:00:20]}  Kd6 {[%clk 0:00:06]} 60. Kh1 {[%clk 0:00:20]}  Ra2 {[%clk 0:00:06]} 61. Kg1 {[%clk 0:00:18]}  Kc7 {[%clk 0:00:07]} 62. Kh1 {[%clk 0:00:19]}  Kc8 {[%clk 0:00:07]} 63. Ra7 {[%clk 0:00:18]}  Kb8 {[%clk 0:00:07]} 64. Rb7+ {[%clk 0:00:17]}  Ka8 {[%clk 0:00:06]} 65. Rb4 {[%clk 0:00:18]}  Rc2 {[%clk 0:00:04]} 66. Rxa4+ {[%clk 0:00:18]}  Kb8 {[%clk 0:00:05]} 67. Ra3 {[%clk 0:00:17]}  h2 {[%clk 0:00:05]} 68. Rh3 {[%clk 0:00:17]}  Kc7 {[%clk 0:00:05]} 69. Rxh2 {[%clk 0:00:17]}  Rc1+ {[%clk 0:00:06]} 70. Kg2 {[%clk 0:00:17]}  Kxc6 {[%clk 0:00:06]} 71. Rh6+ {[%clk 0:00:18]}  Kb5 {[%clk 0:00:07]} 72. Kf3 {[%clk 0:00:17]}  Rc5 {[%clk 0:00:08]} 73. Ke4 {[%clk 0:00:17]}  Rc4+ {[%clk 0:00:08]} 74. Kd3 {[%clk 0:00:18]}  Rc5 {[%clk 0:00:09]} 75. Rh4 {[%clk 0:00:18]}  Rc6 {[%clk 0:00:10]} 76. Rh5+ {[%clk 0:00:16]}  Rc5 {[%clk 0:00:10]} 77. Rh8 {[%clk 0:00:17]}  Rc6 {[%clk 0:00:11]} 78. Kd4 {[%clk 0:00:16]}  Rb6 {[%clk 0:00:11]} 79. Rh5+ {[%clk 0:00:16]}  Kb4 {[%clk 0:00:11]} 80. Rh8 {[%clk 0:00:16]}  Rb5 {[%clk 0:00:12]} 81. Rc8 {[%clk 0:00:16]}  Rb6 {[%clk 0:00:12]} 82. Rc4+ {[%clk 0:00:16]}  Kb5 {[%clk 0:00:12]} 83. Rc5+ {[%clk 0:00:17]}  Ka6 {[%clk 0:00:13]} 84. Rg5 {[%clk 0:00:18]}  Kb7 {[%clk 0:00:13]} 85. Kc5 {[%clk 0:00:17]}  Rc6+ {[%clk 0:00:14]} 86. Kd5 {[%clk 0:00:17]}  Rb6 {[%clk 0:00:14]} 87. Rg7+ {[%clk 0:00:17]}  Ka6 {[%clk 0:00:14]} 88. Kc4 {[%clk 0:00:17]}  Rb7 {[%clk 0:00:14]} 89. Rxb7 {[%clk 0:00:16]}  Kxb7 {[%clk 0:00:15]} 1/2-1/2


[Site "https://www.chess.com"]

[Event "Titled Tuesday Blitz June 21 Late 2022"]
[White "Sarana, Alexey"]
[Black "Svane, Rasmus"]
[WhiteFideId "24133795"]
[BlackFideId "4657101"]
[WhiteElo "2666"]
[BlackElo "2674"]
[Result "0-1"]
[Round "05"]
[TimeControl "180+1"]
[Date "2022.06.21"]
[WhiteClock "0:00:01"]
[BlackClock "0:00:08"]

1. d4 {[%clk 0:03:00]}  Nf6 {[%clk 0:03:00]} 2. c4 {[%clk 0:03:00]}  e6 {[%clk 0:03:00]} 3. Nc3 {[%clk 0:03:00]}  Bb4 {[%clk 0:03:01]} 4. e3 {[%clk 0:03:00]}  O-O {[%clk 0:03:00]} 5. Bd3 {[%clk 0:03:01]}  d5 {[%clk 0:03:00]} 6. a3 {[%clk 0:03:02]}  Bxc3+ {[%clk 0:03:00]} 7. bxc3 {[%clk 0:03:02]}  dxc4 {[%clk 0:03:01]} 8. Bxc4 {[%clk 0:03:03]}  c5 {[%clk 0:03:01]} 9. Ne2 {[%clk 0:03:04]}  Qc7 {[%clk 0:02:59]} 10. Bd3 {[%clk 0:03:04]}  Nc6 {[%clk 0:03:00]} 11. O-O {[%clk 0:03:03]}  e5 {[%clk 0:03:00]} 12. Ng3 {[%clk 0:03:04]}  exd4 {[%clk 0:02:55]} 13. cxd4 {[%clk 0:03:02]}  cxd4 {[%clk 0:02:56]} 14. exd4 {[%clk 0:03:02]}  Rd8 {[%clk 0:02:55]} 15. Bg5 {[%clk 0:03:01]}  Qd6 {[%clk 0:02:55]} 16. Nh5 {[%clk 0:02:34]}  Ng4 {[%clk 0:02:53]} 17. Ng3 {[%clk 0:01:59]}  Nf6 {[%clk 0:02:53]} 18. d5 {[%clk 0:01:41]}  Qxd5 {[%clk 0:02:36]} 19. Bxf6 {[%clk 0:01:40]}  gxf6 {[%clk 0:02:36]} 20. Be4 {[%clk 0:01:29]}  Qxd1 {[%clk 0:02:32]} 21. Rfxd1 {[%clk 0:01:30]}  Be6 {[%clk 0:02:25]} 22. h4 {[%clk 0:01:25]}  h6 {[%clk 0:02:09]} 23. Rac1 {[%clk 0:01:19]}  Rxd1+ {[%clk 0:02:08]} 24. Rxd1 {[%clk 0:01:19]}  Rd8 {[%clk 0:02:05]} 25. Rc1 {[%clk 0:01:20]}  Na5 {[%clk 0:02:00]} 26. Rc7 {[%clk 0:01:13]}  Rc8 {[%clk 0:01:57]} 27. Rxc8+ {[%clk 0:01:06]}  Bxc8 {[%clk 0:01:58]} 28. Nh5 {[%clk 0:00:59]}  f5 {[%clk 0:01:57]} 29. Bd3 {[%clk 0:00:59]}  Nc6 {[%clk 0:01:40]} 30. Kf1 {[%clk 0:00:58]}  Ne5 {[%clk 0:01:38]} 31. Be2 {[%clk 0:00:58]}  Kf8 {[%clk 0:01:38]} 32. Ke1 {[%clk 0:00:58]}  Ke7 {[%clk 0:01:38]} 33. Kd2 {[%clk 0:00:58]}  Be6 {[%clk 0:01:36]} 34. Ke3 {[%clk 0:00:57]}  Bc4 {[%clk 0:01:34]} 35. Bd1 {[%clk 0:00:54]}  Bd5 {[%clk 0:01:27]} 36. Nf4 {[%clk 0:00:48]}  Be6 {[%clk 0:01:23]} 37. Kd4 {[%clk 0:00:46]}  Kd6 {[%clk 0:01:22]} 38. Nh5 {[%clk 0:00:43]}  b5 {[%clk 0:01:19]} 39. Bc2 {[%clk 0:00:40]}  Nc4 {[%clk 0:01:14]} 40. a4 {[%clk 0:00:38]}  bxa4 {[%clk 0:01:08]} 41. Bxa4 {[%clk 0:00:38]}  a5 {[%clk 0:01:07]} 42. Ng3 {[%clk 0:00:36]}  Ne5 {[%clk 0:01:02]} 43. Bc2 {[%clk 0:00:32]}  Nc6+ {[%clk 0:01:02]} 44. Kc3 {[%clk 0:00:32]}  Ke5 {[%clk 0:00:59]} 45. Ne2 {[%clk 0:00:32]}  f4 {[%clk 0:00:58]} 46. g3 {[%clk 0:00:32]}  fxg3 {[%clk 0:00:58]} 47. fxg3 {[%clk 0:00:32]}  Nb4 {[%clk 0:00:57]} 48. Bb1 {[%clk 0:00:29]}  Nd5+ {[%clk 0:00:56]} 49. Kb2 {[%clk 0:00:29]}  Bg4 {[%clk 0:00:45]} 50. Nc1 {[%clk 0:00:30]}  Kd4 {[%clk 0:00:34]} 51. Nb3+ {[%clk 0:00:29]}  Ke3 {[%clk 0:00:34]} 52. Nxa5 {[%clk 0:00:30]}  Kf2 {[%clk 0:00:35]} 53. Ba2 {[%clk 0:00:30]}  Be6 {[%clk 0:00:35]} 54. g4 {[%clk 0:00:27]}  Kg3 {[%clk 0:00:32]} 55. g5 {[%clk 0:00:23]}  h5 {[%clk 0:00:32]} 56. Bb1 {[%clk 0:00:10]}  Kxh4 {[%clk 0:00:30]} 57. g6 {[%clk 0:00:10]}  f5 {[%clk 0:00:16]} 58. Nc6 {[%clk 0:00:10]}  Kg5 {[%clk 0:00:15]} 59. Nd4 {[%clk 0:00:11]}  Bd7 {[%clk 0:00:15]} 60. g7 {[%clk 0:00:09]}  Ne7 {[%clk 0:00:12]} 61. Ba2 {[%clk 0:00:09]}  h4 {[%clk 0:00:10]} 62. g8=Q+ {[%clk 0:00:09]}  Nxg8 {[%clk 0:00:11]} 63. Bxg8 {[%clk 0:00:09]}  h3 {[%clk 0:00:11]} 64. Kc3 {[%clk 0:00:09]}  Kf4 {[%clk 0:00:10]} 65. Kd2 {[%clk 0:00:08]}  h2 {[%clk 0:00:08]} 66. Ne2+ {[%clk 0:00:08]}  Kg4 {[%clk 0:00:08]} 67. Bd5 {[%clk 0:00:08]}  f4 {[%clk 0:00:09]} 68. Nd4 {[%clk 0:00:08]}  Kg3 {[%clk 0:00:08]} 69. Ke1 {[%clk 0:00:05]}  Bg4 {[%clk 0:00:08]} 70. Bh1 {[%clk 0:00:04]}  f3 {[%clk 0:00:08]} 71. Kd2 {[%clk 0:00:01]}  f2 {[%clk 0:00:08]} 0-1


[Site "https://www.chess.com"]

[Event "Titled Tuesday Blitz June 21 Late 2022"]
[White "Shapiro, Daniel"]
[Black "Indjic, Aleksandar"]
[WhiteFideId "2001780"]
[BlackFideId "911925"]
[WhiteElo "2283"]
[BlackElo "2616"]
[Result "0-1"]
[Round "05"]
[TimeControl "180+1"]
[Date "2022.06.21"]
[WhiteClock "0:00:02"]
[BlackClock "0:01:10"]

1. d4 {[%clk 0:03:00]}  Nf6 {[%clk 0:02:59]} 2. c4 {[%clk 0:02:58]}  e6 {[%clk 0:02:59]} 3. g3 {[%clk 0:02:58]}  c5 {[%clk 0:02:59]} 4. d5 {[%clk 0:02:57]}  exd5 {[%clk 0:03:00]} 5. cxd5 {[%clk 0:02:58]}  d6 {[%clk 0:03:00]} 6. Nc3 {[%clk 0:02:58]}  g6 {[%clk 0:03:00]} 7. Nf3 {[%clk 0:02:58]}  Bg7 {[%clk 0:03:00]} 8. Nd2 {[%clk 0:02:59]}  Nbd7 {[%clk 0:02:51]} 9. Nc4 {[%clk 0:02:59]}  Nb6 {[%clk 0:02:51]} 10. Ne3 {[%clk 0:02:53]}  O-O {[%clk 0:02:50]} 11. Bg2 {[%clk 0:02:52]}  Re8 {[%clk 0:02:50]} 12. a4 {[%clk 0:02:46]}  Rb8 {[%clk 0:02:43]} 13. a5 {[%clk 0:02:42]}  Nbd7 {[%clk 0:02:43]} 14. Nc4 {[%clk 0:02:42]}  Ne5 {[%clk 0:02:42]} 15. Na3 {[%clk 0:02:17]}  Qxa5 {[%clk 0:02:35]} 16. Bf4 {[%clk 0:02:12]}  Qd8 {[%clk 0:02:18]} 17. Bxe5 {[%clk 0:02:01]}  dxe5 {[%clk 0:02:16]} 18. Nc4 {[%clk 0:01:54]}  a6 {[%clk 0:02:14]} 19. e4 {[%clk 0:01:45]}  b5 {[%clk 0:02:04]} 20. Na5 {[%clk 0:01:38]}  Bd7 {[%clk 0:02:04]} 21. Qc1 {[%clk 0:01:23]}  c4 {[%clk 0:02:00]} 22. b4 {[%clk 0:01:17]}  cxb3 {[%clk 0:01:44]} 23. Nxb3 {[%clk 0:01:17]}  Qb6 {[%clk 0:01:44]} 24. O-O {[%clk 0:01:12]}  Rec8 {[%clk 0:01:43]} 25. Qd2 {[%clk 0:01:03]}  Bf8 {[%clk 0:01:42]} 26. Ne2 {[%clk 0:00:54]}  b4 {[%clk 0:01:34]} 27. h3 {[%clk 0:00:47]}  Bb5 {[%clk 0:01:33]} 28. Kh2 {[%clk 0:00:35]}  Rc4 {[%clk 0:01:31]} 29. Na5 {[%clk 0:00:26]}  Rxe4 {[%clk 0:01:30]} 30. Bxe4 {[%clk 0:00:19]}  Nxe4 {[%clk 0:01:31]} 31. Qb2 {[%clk 0:00:14]}  Ng5 {[%clk 0:01:25]} 32. Nb3 {[%clk 0:00:12]}  Bg7 {[%clk 0:01:18]} 33. Rac1 {[%clk 0:00:09]}  e4 {[%clk 0:01:14]} 34. Qc2 {[%clk 0:00:08]}  Bd3 {[%clk 0:01:13]} 35. Qc6 {[%clk 0:00:06]}  Bxe2 {[%clk 0:01:10]} 36. Rfe1 {[%clk 0:00:02]}  Nf3+ {[%clk 0:01:10]} 0-1


[Site "https://www.chess.com"]

[Event "Titled Tuesday Blitz June 21 Late 2022"]
[White "Sjugirov, Sanan"]
[Black "Tsvetkov, Andrey"]
[WhiteFideId "4189302"]
[BlackFideId "34139360"]
[WhiteElo "2602"]
[BlackElo "2280"]
[Result "1-0"]
[Round "05"]
[TimeControl "180+1"]
[Date "2022.06.21"]
[WhiteClock "0:00:07"]
[BlackClock "0:00:07"]

1. e4 {[%clk 0:03:00]}  c5 {[%clk 0:02:59]} 2. Nf3 {[%clk 0:03:00]}  d6 {[%clk 0:02:58]} 3. d4 {[%clk 0:03:00]}  cxd4 {[%clk 0:02:59]} 4. Nxd4 {[%clk 0:03:01]}  Nf6 {[%clk 0:02:59]} 5. Nc3 {[%clk 0:03:01]}  a6 {[%clk 0:02:59]} 6. Be3 {[%clk 0:03:02]}  e5 {[%clk 0:02:59]} 7. Nf3 {[%clk 0:03:02]}  Be7 {[%clk 0:02:59]} 8. Bc4 {[%clk 0:03:03]}  Be6 {[%clk 0:02:59]} 9. Bb3 {[%clk 0:03:02]}  Nbd7 {[%clk 0:02:59]} 10. O-O {[%clk 0:02:58]}  Qc8 {[%clk 0:02:59]} 11. Nh4 {[%clk 0:02:49]}  g6 {[%clk 0:02:37]} 12. Nf3 {[%clk 0:02:45]}  O-O {[%clk 0:02:28]} 13. h3 {[%clk 0:02:19]}  Bxb3 {[%clk 0:02:11]} 14. cxb3 {[%clk 0:02:15]}  b5 {[%clk 0:02:11]} 15. Bg5 {[%clk 0:01:50]}  Qb7 {[%clk 0:02:04]} 16. b4 {[%clk 0:01:40]}  Rfe8 {[%clk 0:01:50]} 17. Re1 {[%clk 0:01:30]}  Rad8 {[%clk 0:01:50]} 18. Qb3 {[%clk 0:01:17]}  Rc8 {[%clk 0:01:20]} 19. Rad1 {[%clk 0:01:14]}  Kg7 {[%clk 0:01:02]} 20. a3 {[%clk 0:01:06]}  h6 {[%clk 0:01:00]} 21. Bxf6+ {[%clk 0:01:06]}  Nxf6 {[%clk 0:01:01]} 22. Nd5 {[%clk 0:01:07]}  Nxd5 {[%clk 0:01:01]} 23. Rxd5 {[%clk 0:01:08]}  Rc4 {[%clk 0:00:58]} 24. Nd2 {[%clk 0:01:06]}  Rc6 {[%clk 0:00:55]} 25. Nb1 {[%clk 0:01:00]}  Rec8 {[%clk 0:00:46]} 26. Nc3 {[%clk 0:01:00]}  Bd8 {[%clk 0:00:40]} 27. Qd1 {[%clk 0:00:57]}  Qb8 {[%clk 0:00:38]} 28. Rd2 {[%clk 0:00:51]}  Bb6 {[%clk 0:00:33]} 29. Nd5 {[%clk 0:00:50]}  Qb7 {[%clk 0:00:34]} 30. Qf3 {[%clk 0:00:48]}  Re8 {[%clk 0:00:28]} 31. h4 {[%clk 0:00:41]}  h5 {[%clk 0:00:22]} 32. g3 {[%clk 0:00:32]}  Re6 {[%clk 0:00:20]} 33. Kg2 {[%clk 0:00:30]}  Bd4 {[%clk 0:00:20]} 34. Ree2 {[%clk 0:00:20]}  Rc8 {[%clk 0:00:20]} 35. Rc2 {[%clk 0:00:20]}  Kg8 {[%clk 0:00:08]} 36. Qd3 {[%clk 0:00:16]}  f5 {[%clk 0:00:07]} 37. Rxc8+ {[%clk 0:00:16]}  Qxc8 {[%clk 0:00:08]} 38. Rc2 {[%clk 0:00:16]}  Qb7 {[%clk 0:00:07]} 39. Rc7 {[%clk 0:00:16]}  Qa8 {[%clk 0:00:06]} 40. Qc2 {[%clk 0:00:15]}  Re8 {[%clk 0:00:06]} 41. Nf6+ {[%clk 0:00:11]}  Kf8 {[%clk 0:00:06]} 42. Nxe8 {[%clk 0:00:11]}  fxe4 {[%clk 0:00:07]} 43. Rc8 {[%clk 0:00:07]} 1-0


[Site "https://www.chess.com"]

[Event "Titled Tuesday Blitz June 21 Late 2022"]
[White "Sohal, Tanraj"]
[Black "Kosakowski, Jakub"]
[WhiteFideId "2608499"]
[BlackFideId "1185080"]
[WhiteElo "2200"]
[BlackElo "2476"]
[Result "1-0"]
[Round "05"]
[TimeControl "180+1"]
[Date "2022.06.21"]
[WhiteClock "0:00:09"]
[BlackClock "0:00:01"]

1. d4 {[%clk 0:03:00]}  g6 {[%clk 0:02:44]} 2. Nf3 {[%clk 0:03:00]}  Bg7 {[%clk 0:02:44]} 3. c4 {[%clk 0:03:01]}  Nf6 {[%clk 0:02:44]} 4. Nc3 {[%clk 0:03:02]}  d5 {[%clk 0:02:45]} 5. e3 {[%clk 0:02:57]}  O-O {[%clk 0:02:41]} 6. Be2 {[%clk 0:02:57]}  c5 {[%clk 0:02:36]} 7. O-O {[%clk 0:02:55]}  cxd4 {[%clk 0:02:31]} 8. Nxd4 {[%clk 0:02:54]}  dxc4 {[%clk 0:02:29]} 9. Bxc4 {[%clk 0:02:54]}  a6 {[%clk 0:02:29]} 10. b3 {[%clk 0:02:46]}  b5 {[%clk 0:02:26]} 11. Be2 {[%clk 0:02:42]}  Bb7 {[%clk 0:02:25]} 12. Bf3 {[%clk 0:02:38]}  Qb6 {[%clk 0:02:21]} 13. Bb2 {[%clk 0:02:32]}  Rd8 {[%clk 0:02:15]} 14. Bxb7 {[%clk 0:02:32]}  Qxb7 {[%clk 0:02:12]} 15. Qf3 {[%clk 0:02:33]}  Qxf3 {[%clk 0:02:10]} 16. Nxf3 {[%clk 0:02:33]}  Nc6 {[%clk 0:02:06]} 17. Rfd1 {[%clk 0:02:25]}  Nb4 {[%clk 0:02:02]} 18. Ne1 {[%clk 0:02:07]}  Rac8 {[%clk 0:01:54]} 19. Rxd8+ {[%clk 0:01:40]}  Rxd8 {[%clk 0:01:55]} 20. Ba3 {[%clk 0:01:31]}  a5 {[%clk 0:00:50]} 21. Rd1 {[%clk 0:01:21]}  Rxd1 {[%clk 0:00:46]} 22. Nxd1 {[%clk 0:01:22]}  Nfd5 {[%clk 0:00:46]} 23. Bxb4 {[%clk 0:01:18]}  Nxb4 {[%clk 0:00:45]} 24. a3 {[%clk 0:01:16]}  Nc6 {[%clk 0:00:40]} 25. Kf1 {[%clk 0:00:51]}  e6 {[%clk 0:00:38]} 26. Ke2 {[%clk 0:00:51]}  Kf8 {[%clk 0:00:35]} 27. a4 {[%clk 0:00:49]}  bxa4 {[%clk 0:00:35]} 28. bxa4 {[%clk 0:00:49]}  Ke7 {[%clk 0:00:35]} 29. Kd3 {[%clk 0:00:45]}  Kd6 {[%clk 0:00:35]} 30. Kc4 {[%clk 0:00:44]}  Nb4 {[%clk 0:00:10]} 31. Kb5 {[%clk 0:00:38]}  Nd5 {[%clk 0:00:09]} 32. Nd3 {[%clk 0:00:18]}  Nc7+ {[%clk 0:00:03]} 33. Kb6 {[%clk 0:00:16]}  f5 {[%clk 0:00:04]} 34. f3 {[%clk 0:00:14]}  e5 {[%clk 0:00:02]} 35. e4 {[%clk 0:00:14]}  fxe4 {[%clk 0:00:02]} 36. fxe4 {[%clk 0:00:15]}  Bh6 {[%clk 0:00:03]} 37. Nc3 {[%clk 0:00:14]}  Ne6 {[%clk 0:00:01]} 38. Kxa5 {[%clk 0:00:11]}  Bd2 {[%clk 0:00:01]} 39. Kb4 {[%clk 0:00:11]}  Nd4 {[%clk 0:00:01]} 40. Kc4 {[%clk 0:00:09]} 1-0


[Site "https://www.chess.com"]